[Event "SS Manhem Chess Week 2019 GM and IM tournaments"]
[Site "Molnlycke kulturhus, Biblioteksgatan 2, Molnlycke, Sweden"]
[Date "2019.08.16"]
[Round "9.6"]
[White "Rydstrom, Tom"]
[Black "Borsuk, Konstantin"]
[Result "1-0"]
[TimeControl "90 minutes for 40 moves + 30 minutes for the rest of the game + 30 seconds per move from move one."]
[WhiteTitle "FM"]
[BlackTitle "FM"]
[WhiteFideId "1714830"]
[BlackFideId "14113406"]
[WhiteElo "2314"]
[BlackElo "2372"]

1. e4 {[%clk 01:17:31]} {[%emt 00:13:29]} e6 {[%clk 01:30:48]} {[%emt
00:00:12]} 2. d4 {[%clk 01:17:58]} {[%emt 00:00:03]} d5 {[%clk 01:31:12]}
{[%emt 00:00:06]} 3. Nc3 {[%clk 01:18:13]} {[%emt 00:00:15]} Bb4 {[%clk
01:31:21]} {[%emt 00:00:21]} 4. e5 {[%clk 01:18:40]} {[%emt 00:00:04]} b6
{[%clk 01:31:27]} {[%emt 00:00:24]} 5. Qg4 {[%clk 01:17:05]} {[%emt 00:02:05]}
Bf8 {[%clk 01:31:18]} {[%emt 00:00:39]} 6. Nf3 {[%clk 01:15:39]} {[%emt
00:01:56]} Qd7 {[%clk 01:28:20]} {[%emt 00:03:29]} 7. h4 {[%clk 01:07:11]}
{[%emt 00:08:58]} Ba6 {[%clk 01:23:47]} {[%emt 00:05:03]} 8. Bxa6 {[%clk
01:07:00]} {[%emt 00:00:41]} Nxa6 {[%clk 01:24:15]} {[%emt 00:00:02]} 9. O-O
{[%clk 01:07:22]} {[%emt 00:00:08]} h5 {[%clk 01:18:49]} {[%emt 00:05:56]} 10.
Qf4 {[%clk 01:06:14]} {[%emt 00:01:38]} Nh6 {[%clk 01:17:01]} {[%emt 00:02:17]}
11. a4 {[%clk 01:04:49]} {[%emt 00:01:56]} Nb4 {[%clk 01:15:02]} {[%emt
00:02:28]} 12. Qd2 {[%clk 01:03:51]} {[%emt 00:01:28]} a6 {[%clk 01:00:09]}
{[%emt 00:15:24]} 13. Ne2 {[%clk 01:03:54]} {[%emt 00:00:26]} c5 {[%clk
00:58:04]} {[%emt 00:02:35]} 14. c3 {[%clk 01:02:02]} {[%emt 00:02:22]} Nc6
{[%clk 00:58:06]} {[%emt 00:00:27]} 15. Ng3 {[%clk 00:56:40]} {[%emt 00:05:53]}
Ng4 {[%clk 00:50:49]} {[%emt 00:07:47]} 16. Qe2 {[%clk 00:52:28]} {[%emt
00:04:41]} c4 {[%clk 00:42:55]} {[%emt 00:08:25]} 17. Bg5 {[%clk 00:42:56]}
{[%emt 00:10:01]} g6 {[%clk 00:36:12]} {[%emt 00:07:14]} 18. Nd2 {[%clk
00:42:37]} {[%emt 00:00:50]} Rc8 {[%clk 00:33:33]} {[%emt 00:03:09]} 19. b3
{[%clk 00:39:07]} {[%emt 00:04:00]} b5 {[%clk 00:24:53]} {[%emt 00:09:10]} 20.
axb5 {[%clk 00:37:33]} {[%emt 00:02:05]} axb5 {[%clk 00:25:21]} {[%emt
00:00:02]} 21. bxc4 {[%clk 00:35:04]} {[%emt 00:02:59]} bxc4 {[%clk 00:25:45]}
{[%emt 00:00:06]} 22. Rfb1 {[%clk 00:34:01]} {[%emt 00:01:32]} Bg7 {[%clk
00:18:30]} {[%emt 00:07:45]} 23. Ngf1 {[%clk 00:30:33]} {[%emt 00:03:58]} O-O
{[%clk 00:13:02]} {[%emt 00:05:58]} 24. f3 {[%clk 00:28:58]} {[%emt 00:02:06]}
Ngxe5 {[%clk 00:11:22]} {[%emt 00:02:10]} 25. dxe5 {[%clk 00:29:23]} {[%emt
00:00:05]} Nxe5 {[%clk 00:11:35]} {[%emt 00:00:16]} 26. Be3 {[%clk 00:17:42]}
{[%emt 00:12:11]} Nd3 {[%clk 00:07:34]} {[%emt 00:04:32]} 27. Bd4 {[%clk
00:10:55]} {[%emt 00:07:17]} e5 {[%clk 00:06:51]} {[%emt 00:01:13]} 28. Bf2
{[%clk 00:11:11]} {[%emt 00:00:14]} Ra8 {[%clk 00:04:52]} {[%emt 00:02:29]} 29.
Ne3 {[%clk 00:11:21]} {[%emt 00:00:19]} f5 {[%clk 00:04:15]} {[%emt 00:01:07]}
30. Nc2 {[%clk 00:06:49]} {[%emt 00:05:01]} Bf6 {[%clk 00:01:02]} {[%emt
00:03:44]} 31. Ne1 {[%clk 00:02:58]} {[%emt 00:04:21]} Nxf2 {[%clk 00:01:01]}
{[%emt 00:00:30]} 32. Qxf2 {[%clk 00:03:25]} {[%emt 00:00:03]} Rxa1 {[%clk
00:00:55]} {[%emt 00:00:37]} 33. Rxa1 {[%clk 00:03:54]} e4 {[%clk 00:01:04]}
{[%emt 00:00:20]} 34. fxe4 {[%clk 00:02:18]} {[%emt 00:02:06]} fxe4 {[%clk
00:00:36]} {[%emt 00:00:59]} 35. Qg3 {[%clk 00:02:28]} {[%emt 00:00:19]} Qf5
{[%clk 00:00:34]} {[%emt 00:00:32]} 36. Nc2 {[%clk 00:01:33]} {[%emt 00:01:26]}
Be5 {[%clk 00:01:03]} {[%emt 00:00:01]} 37. Qe3 {[%clk 00:01:55]} {[%emt
00:00:07]} Bf4 {[%clk 00:00:41]} {[%emt 00:00:53]} 38. Qd4 {[%clk 00:02:05]}
{[%emt 00:00:20]} Qe5 {[%clk 00:00:37]} {[%emt 00:00:34]} 39. Qxe5 {[%clk
00:01:56]} {[%emt 00:00:39]} Bxe5 {[%clk 00:01:05]} {[%emt 00:00:01]} 40. Nd4
{[%clk 00:01:27]} {[%emt 00:00:59]} Bg3 {[%clk 00:00:38]} {[%emt 00:00:57]} 41.
Nf1 {[%clk 00:23:15]} {[%emt 00:08:42]} Bf2+ {[%clk 00:21:04]} {[%emt
00:10:04]} 42. Kh2 {[%clk 00:23:06]} {[%emt 00:00:39]} Rb8 {[%clk 00:09:01]}
{[%emt 00:12:33]} 43. Ra2 {[%clk 00:19:24]} {[%emt 00:04:12]} Be1 {[%clk
00:06:10]} {[%emt 00:03:21]} 44. Rc2 {[%clk 00:19:27]} {[%emt 00:00:27]} Bxh4
{[%clk 00:05:40]} {[%emt 00:01:01]} 45. Ne3 {[%clk 00:18:12]} {[%emt 00:01:44]}
Bf6 {[%clk 00:02:01]} {[%emt 00:04:08]} 46. Nxd5 {[%clk 00:15:46]} {[%emt
00:02:56]} Bxd4 {[%clk 00:00:55]} {[%emt 00:01:37]} 47. cxd4 {[%clk 00:16:15]}
{[%emt 00:00:01]} Rd8 {[%clk 00:01:16]} {[%emt 00:00:09]} 48. Nf4 {[%clk
00:15:55]} {[%emt 00:00:50]} Rxd4 {[%clk 00:01:27]} {[%emt 00:00:19]} 49. Nxg6
{[%clk 00:16:11]} {[%emt 00:00:15]} e3 {[%clk 00:01:06]} {[%emt 00:00:51]} 50.
Ne5 {[%clk 00:16:12]} {[%emt 00:00:29]} Re4 {[%clk 00:00:52]} {[%emt 00:00:44]}
51. Nf3 {[%clk 00:16:18]} {[%emt 00:00:25]} Kg7 {[%clk 00:00:51]} {[%emt
00:00:31]} 52. Kg1 {[%clk 00:14:14]} {[%emt 00:02:34]} h4 {[%clk 00:00:34]}
{[%emt 00:00:47]} 53. Kf1 {[%clk 00:14:16]} {[%emt 00:00:28]} Kh6 {[%clk
00:00:52]} {[%emt 00:00:12]} 54. Ke2 {[%clk 00:12:24]} {[%emt 00:02:21]} Kh5
{[%clk 00:01:19]} {[%emt 00:00:03]} 55. Nh2 {[%clk 00:05:07]} {[%emt 00:07:47]}
Kg5 {[%clk 00:01:01]} {[%emt 00:00:48]} 56. Rc1 {[%clk 00:02:48]} {[%emt
00:02:49]} Kf4 {[%clk 00:01:00]} {[%emt 00:00:31]} 57. Nf1 {[%clk 00:03:07]}
{[%emt 00:00:11]} Ke5 {[%clk 00:00:31]} {[%emt 00:01:00]} 58. Nxe3 {[%clk
00:02:36]} {[%emt 00:01:01]} h3 {[%clk 00:00:33]} {[%emt 00:00:27]} 59. gxh3
{[%clk 00:01:38]} {[%emt 00:01:28]} Rh4 {[%clk 00:00:35]} {[%emt 00:00:28]} 60.
Rh1 {[%clk 00:01:55]} {[%emt 00:00:13]} Ke4 {[%clk 00:00:33]} {[%emt 00:00:32]}
61. Nxc4 {[%clk 00:01:27]} {[%emt 00:00:59]} Kf4 {[%clk 00:00:36]} {[%emt
00:00:26]} 62. Kf2 {[%clk 00:01:47]} {[%emt 00:00:10]} Rh8 {[%clk 00:00:48]}
{[%emt 00:00:17]} 63. Ne3 {[%clk 00:02:03]} {[%emt 00:00:15]} Ra8 {[%clk
00:00:42]} {[%emt 00:00:36]} 64. Ng2+ {[%clk 00:02:19]} {[%emt 00:00:14]} Ke4
{[%clk 00:00:46]} {[%emt 00:00:26]} 65. Re1+ {[%clk 00:02:45]} {[%emt
00:00:05]} Kf5 {[%clk 00:01:08]} {[%emt 00:00:08]} 66. Kf3 {[%clk 00:03:12]}
{[%emt 00:00:03]} Rh8 {[%clk 00:00:35]} {[%emt 00:01:03]} 67. h4 {[%clk
00:03:12]} {[%emt 00:00:30]} Ra8 {[%clk 00:00:54]} {[%emt 00:00:10]} 68. Rd1
{[%clk 00:01:53]} {[%emt 00:01:49]} Ra3+ {[%clk 00:01:05]} {[%emt 00:00:19]} 69.
Ne3+ {[%clk 00:02:22]} {[%emt 00:00:02]} Kg6 {[%clk 00:01:28]} {[%emt
00:00:06]} 70. Rd5 {[%clk 00:02:13]} {[%emt 00:00:39]} Kh6 {[%clk 00:01:39]}
{[%emt 00:00:19]} 1-0

[Event "SS Manhem Chess Week 2019 GM and IM tournaments"]
[Site "Molnlycke kulturhus, Biblioteksgatan 2, Molnlycke, Sweden"]
[Date "2019.08.16"]
[Round "9.7"]
[White "Pham, Bich Ngoc"]
[Black "Jacobsen, Mikkel Manosri"]
[Result "1-0"]
[TimeControl "90 minutes for 40 moves + 30 minutes for the rest of the game + 30 seconds per move from move one."]
[WhiteTitle "WIM"]
[BlackTitle "FM"]
[WhiteFideId "12401285"]
[BlackFideId "1444514"]
[WhiteElo "2176"]
[BlackElo "2269"]

1. f4 {[%clk 01:17:18]} {[%emt 00:13:42]} Nf6 {[%clk 01:30:55]} {[%emt
00:00:05]} 2. Nf3 {[%clk 01:17:44]} {[%emt 00:00:04]} g6 {[%clk 01:31:20]}
{[%emt 00:00:06]} 3. g3 {[%clk 01:18:03]} {[%emt 00:00:10]} Bg7 {[%clk
01:31:45]} {[%emt 00:00:04]} 4. Bg2 {[%clk 01:18:30]} {[%emt 00:00:04]} O-O
{[%clk 01:32:10]} {[%emt 00:00:05]} 5. d3 {[%clk 01:18:52]} {[%emt 00:00:08]}
c5 {[%clk 01:32:36]} {[%emt 00:00:04]} 6. e4 {[%clk 01:17:04]} {[%emt
00:02:18]} d6 {[%clk 01:33:02]} {[%emt 00:00:04]} 7. O-O {[%clk 01:17:18]}
{[%emt 00:00:16]} Nc6 {[%clk 01:33:29]} {[%emt 00:00:03]} 8. c3 {[%clk
01:16:07]} {[%emt 00:01:41]} Qc7 {[%clk 01:29:24]} {[%emt 00:04:36]} 9. Qe2
{[%clk 01:12:39]} {[%emt 00:03:58]} Rb8 {[%clk 01:21:27]} {[%emt 00:08:27]} 10.
a4 {[%clk 01:02:52]} {[%emt 00:10:18]} a6 {[%clk 01:20:06]} {[%emt 00:01:50]}
11. Na3 {[%clk 01:02:33]} {[%emt 00:00:49]} b5 {[%clk 01:16:27]} {[%emt
00:04:09]} 12. axb5 {[%clk 01:00:53]} {[%emt 00:02:10]} axb5 {[%clk 01:16:55]}
{[%emt 00:00:03]} 13. Bd2 {[%clk 00:55:55]} {[%emt 00:05:28]} Nd7 {[%clk
01:16:58]} {[%emt 00:00:27]} 14. f5 {[%clk 00:49:58]} {[%emt 00:06:27]} Nde5
{[%clk 01:12:24]} {[%emt 00:05:04]} 15. Nxe5 {[%clk 00:48:39]} {[%emt
00:01:49]} Nxe5 {[%clk 01:12:10]} {[%emt 00:00:42]} 16. g4 {[%clk 00:45:44]}
{[%emt 00:03:27]} b4 {[%clk 01:05:41]} {[%emt 00:06:59]} 17. Nc4 {[%clk
00:42:59]} {[%emt 00:03:15]} Bd7 {[%clk 00:56:07]} {[%emt 00:10:04]} 18. Nxe5
{[%clk 00:38:31]} {[%emt 00:04:59]} Bxe5 {[%clk 00:56:33]} {[%emt 00:00:04]} 19.
Rf3 {[%clk 00:38:14]} {[%emt 00:00:46]} bxc3 {[%clk 00:53:36]} {[%emt
00:03:28]} 20. bxc3 {[%clk 00:35:43]} {[%emt 00:03:02]} Rb2 {[%clk 00:53:09]}
{[%emt 00:00:57]} 21. Qe3 {[%clk 00:29:13]} {[%emt 00:07:00]} Rfb8 {[%clk
00:41:46]} {[%emt 00:11:54]} 22. Raf1 {[%clk 00:29:05]} {[%emt 00:00:37]} Be8
{[%clk 00:40:13]} {[%emt 00:02:04]} 23. Rh3 {[%clk 00:19:14]} {[%emt 00:10:20]}
Bg7 {[%clk 00:38:51]} {[%emt 00:01:51]} 24. g5 {[%clk 00:18:24]} {[%emt
00:01:21]} Rc2 {[%clk 00:32:00]} {[%emt 00:07:21]} 25. Qf4 {[%clk 00:14:23]}
{[%emt 00:04:32]} Rbb2 {[%clk 00:29:36]} {[%emt 00:02:54]} 26. Rf2 {[%clk
00:12:35]} {[%emt 00:02:18]} Be5 {[%clk 00:28:24]} {[%emt 00:01:42]} 27. Qh4
{[%clk 00:11:35]} {[%emt 00:01:30]} Rxd2 {[%clk 00:28:05]} {[%emt 00:00:49]} 28.
Qxh7+ {[%clk 00:11:57]} {[%emt 00:00:07]} Kf8 {[%clk 00:28:28]} {[%emt
00:00:07]} 29. f6 {[%clk 00:11:54]} {[%emt 00:00:34]} exf6 {[%clk 00:23:19]}
{[%emt 00:05:40]} 30. gxf6 {[%clk 00:12:11]} {[%emt 00:00:13]} Bxf6 {[%clk
00:22:54]} {[%emt 00:00:55]} 31. Rxd2 {[%clk 00:12:16]} {[%emt 00:00:24]} Rb1+
{[%clk 00:23:01]} {[%emt 00:00:22]} 32. Bf1 {[%clk 00:12:34]} {[%emt 00:00:12]}
Bxc3 {[%clk 00:22:59]} {[%emt 00:00:33]} 33. Ra2 {[%clk 00:11:59]} {[%emt
00:01:05]} Bd4+ {[%clk 00:22:36]} {[%emt 00:00:53]} 34. Kg2 {[%clk 00:11:45]}
{[%emt 00:00:43]} Qb7 {[%clk 00:15:40]} {[%emt 00:07:26]} 35. Rf3 {[%clk
00:10:51]} {[%emt 00:01:23]} Rb2+ {[%clk 00:15:00]} {[%emt 00:01:11]} 36. Rxb2
{[%clk 00:11:17]} {[%emt 00:00:05]} Qxb2+ {[%clk 00:15:26]} {[%emt 00:00:03]}
37. Kh1 {[%clk 00:11:30]} {[%emt 00:00:15]} Ke7 {[%clk 00:15:29]} {[%emt
00:00:28]} 38. Qh4+ {[%clk 00:11:31]} {[%emt 00:00:29]} f6 {[%clk 00:15:57]}
{[%emt 00:00:03]} 39. Qg4 {[%clk 00:09:34]} {[%emt 00:02:26]} Bf7 {[%clk
00:14:53]} {[%emt 00:01:35]} 40. Qg2 {[%clk 00:06:58]} {[%emt 00:03:05]} Qb1
{[%clk 00:14:58]} {[%emt 00:00:27]} 41. Qe2 {[%clk 00:05:25]} {[%emt 00:02:03]}
Be6 {[%clk 00:11:03]} {[%emt 00:04:24]} 42. h3 {[%clk 00:03:55]} {[%emt
00:02:00]} Bb3 {[%clk 00:11:16]} {[%emt 00:00:18]} 43. Rg3 {[%clk 00:28:41]}
{[%emt 00:05:44]} Bd1 {[%clk 00:41:17]} {[%emt 00:00:29]} 44. Qg2 {[%clk
00:26:55]} {[%emt 00:02:14]} Bh5 {[%clk 00:41:44]} {[%emt 00:00:04]} 45. Rg4
{[%clk 00:23:09]} {[%emt 00:04:16]} Qd1 {[%clk 00:37:35]} {[%emt 00:04:39]} 46.
Qe2 {[%clk 00:23:18]} {[%emt 00:00:21]} Qc1 {[%clk 00:38:03]} {[%emt 00:00:03]}
47. Kg2 {[%clk 00:21:42]} {[%emt 00:02:06]} Be5 {[%clk 00:36:33]} {[%emt
00:02:00]} 48. Qf2 {[%clk 00:20:01]} {[%emt 00:02:11]} Bxg4 {[%clk 00:33:22]}
{[%emt 00:03:41]} 49. hxg4 {[%clk 00:20:25]} {[%emt 00:00:06]} Qh6 {[%clk
00:33:49]} {[%emt 00:00:03]} 50. Be2 {[%clk 00:19:20]} {[%emt 00:01:35]} Bd4
{[%clk 00:30:57]} {[%emt 00:03:22]} 51. Qg3 {[%clk 00:18:11]} {[%emt 00:01:39]}
Qd2 {[%clk 00:30:50]} {[%emt 00:00:38]} 52. Qf3 {[%clk 00:18:29]} {[%emt
00:00:11]} Ke6 {[%clk 00:29:49]} {[%emt 00:01:31]} 53. Kf1 {[%clk 00:17:36]}
{[%emt 00:01:23]} Be3 {[%clk 00:28:53]} {[%emt 00:01:26]} 54. Qg3 {[%clk
00:16:24]} {[%emt 00:01:43]} Bf4 {[%clk 00:27:48]} {[%emt 00:01:35]} 55. Qe1
{[%clk 00:16:31]} {[%emt 00:00:22]} Qb2 {[%clk 00:27:41]} {[%emt 00:00:38]} 56.
Qa5 {[%clk 00:16:07]} {[%emt 00:00:54]} Ke5 {[%clk 00:27:45]} {[%emt 00:00:25]}
57. Qa4 {[%clk 00:12:46]} {[%emt 00:03:52]} Be3 {[%clk 00:27:36]} {[%emt
00:00:39]} 58. Qd1 {[%clk 00:10:54]} {[%emt 00:02:21]} Kf4 {[%clk 00:25:13]}
{[%emt 00:02:52]} 59. Kg2 {[%clk 00:11:19]} {[%emt 00:00:06]} Bd4 {[%clk
00:23:38]} {[%emt 00:02:06]} 60. Qf1+ {[%clk 00:10:19]} {[%emt 00:01:29]} Kg5
{[%clk 00:23:34]} {[%emt 00:00:35]} 61. Qe1 {[%clk 00:09:15]} {[%emt 00:01:33]}
Be3 {[%clk 00:23:05]} {[%emt 00:00:59]} 62. Kh3 {[%clk 00:09:04]} {[%emt
00:00:41]} Kh6 {[%clk 00:22:37]} {[%emt 00:00:59]} 63. Qh4+ {[%clk 00:08:40]}
{[%emt 00:00:54]} Kg7 {[%clk 00:23:05]} {[%emt 00:00:02]} 64. Qe1 {[%clk
00:09:01]} {[%emt 00:00:09]} Bf4 {[%clk 00:21:16]} {[%emt 00:02:23]} 65. Kg2
{[%clk 00:08:43]} {[%emt 00:00:48]} Qc2 {[%clk 00:21:33]} {[%emt 00:00:13]} 66.
Qd1 {[%clk 00:08:47]} {[%emt 00:00:25]} Qc3 {[%clk 00:21:57]} {[%emt 00:00:07]}
67. Kf1 {[%clk 00:08:07]} {[%emt 00:01:09]} Qa3 {[%clk 00:20:02]} {[%emt
00:02:26]} 68. Qc2 {[%clk 00:08:08]} {[%emt 00:00:29]} Kh6 {[%clk 00:19:39]}
{[%emt 00:00:53]} 69. Kg2 {[%clk 00:08:25]} {[%emt 00:00:13]} Kg5 {[%clk
00:19:23]} {[%emt 00:00:46]} 70. Kh3 {[%clk 00:08:28]} {[%emt 00:00:27]} Qa1
{[%clk 00:19:30]} {[%emt 00:00:23]} 71. Qd1 {[%clk 00:08:33]} {[%emt 00:00:25]}
Qc3 {[%clk 00:19:18]} {[%emt 00:00:43]} 72. Bf3 {[%clk 00:07:23]} {[%emt
00:01:40]} Qb2 {[%clk 00:19:46]} {[%emt 00:00:02]} 73. Qe2 {[%clk 00:07:27]}
{[%emt 00:00:26]} Qc3 {[%clk 00:16:04]} {[%emt 00:04:12]} 74. Qf2 {[%clk
00:07:29]} {[%emt 00:00:28]} Kh6 {[%clk 00:16:32]} {[%emt 00:00:03]} 75. Qe2
{[%clk 00:07:53]} {[%emt 00:00:06]} Bd2 {[%clk 00:14:50]} {[%emt 00:02:12]} 76.
Kg2 {[%clk 00:07:46]} {[%emt 00:00:37]} Kg5 {[%clk 00:13:55]} {[%emt 00:01:24]}
77. Kh3 {[%clk 00:08:09]} {[%emt 00:00:06]} Kf4 {[%clk 00:12:49]} {[%emt
00:01:37]} 78. Bh1 {[%clk 00:08:30]} {[%emt 00:00:08]} Ke5 {[%clk 00:12:22]}
{[%emt 00:00:57]} 79. Bg2 {[%clk 00:05:51]} {[%emt 00:03:10]} Kd4 {[%clk
00:03:41]} {[%emt 00:09:12]} 80. e5 {[%clk 00:05:48]} {[%emt 00:00:32]} f5
{[%clk 00:01:50]} {[%emt 00:02:21]} 81. gxf5 {[%clk 00:04:00]} {[%emt
00:02:18]} gxf5 {[%clk 00:02:17]} {[%emt 00:00:03]} 82. e6 {[%clk 00:03:10]}
{[%emt 00:01:19]} Bg5 {[%clk 00:02:13]} {[%emt 00:00:35]} 83. Be4 {[%clk
00:02:55]} {[%emt 00:00:44]} Ke5 {[%clk 00:00:54]} {[%emt 00:01:50]} 84. Qf3
{[%clk 00:03:03]} {[%emt 00:00:22]} f4 {[%clk 00:00:34]} {[%emt 00:00:51]} 85.
Qh5 {[%clk 00:02:13]} {[%emt 00:01:19]} Kxe6 {[%clk 00:00:58]} {[%emt
00:00:06]} 86. Qxg5 {[%clk 00:02:38]} {[%emt 00:00:05]} Qe5 {[%clk 00:00:51]}
{[%emt 00:00:38]} 87. Qh6+ {[%clk 00:02:39]} {[%emt 00:00:28]} Qf6 {[%clk
00:01:15]} {[%emt 00:00:06]} 88. Qh5 {[%clk 00:02:32]} {[%emt 00:00:38]} Ke7
{[%clk 00:01:01]} {[%emt 00:00:45]} 89. Qh7+ {[%clk 00:02:01]} {[%emt
00:01:00]} Kd8 {[%clk 00:01:27]} {[%emt 00:00:04]} 90. Bf5 {[%clk 00:02:14]}
{[%emt 00:00:17]} Ke8 {[%clk 00:00:44]} {[%emt 00:01:12]} 91. Kg4 {[%clk
00:02:26]} {[%emt 00:00:19]} Qe5 {[%clk 00:00:51]} {[%emt 00:00:23]} 92. Qd7+
{[%clk 00:02:11]} {[%emt 00:00:44]} Kf8 {[%clk 00:01:19]} {[%emt 00:00:02]} 93.
Qe6 {[%clk 00:02:28]} {[%emt 00:00:12]} Qe3 {[%clk 00:00:46]} {[%emt 00:01:03]}
94. Qxe3 {[%emt 00:00:48]} fxe3 {[%clk 00:01:13]} {[%emt 00:00:01]} 95. Kf3
{[%clk 00:02:38]} {[%emt 00:00:04]} Ke7 {[%clk 00:00:32]} {[%emt 00:01:11]} 96.
Kxe3 {[%clk 00:03:02]} {[%emt 00:00:06]} d5 {[%clk 00:00:58]} {[%emt 00:00:04]}
97. Kf4 {[%clk 00:03:14]} {[%emt 00:00:17]} Kd6 {[%clk 00:01:24]} {[%emt
00:00:05]} 98. Bh7 {[%clk 00:03:35]} {[%emt 00:00:09]} c4 {[%clk 00:00:46]}
{[%emt 00:01:08]} 99. d4 {[%clk 00:04:00]} {[%emt 00:00:04]} Ke6 {[%clk
00:01:06]} {[%emt 00:00:10]} 100. Bg8+ {[%clk 00:04:13]} {[%emt 00:00:17]} Kd6
{[%clk 00:01:35]} {[%emt 00:00:01]} 101. Bf7 {[%clk 00:04:06]} {[%emt
00:00:36]} Kc6 {[%clk 00:01:58]} {[%emt 00:00:08]} 102. Ke5 {[%clk 00:04:26]}
{[%emt 00:00:10]} c3 {[%clk 00:02:20]} {[%emt 00:00:08]} 103. Bxd5+ {[%clk
00:04:52]} {[%emt 00:00:05]} Kb5 {[%clk 00:02:47]} {[%emt 00:00:03]} 104. Bb3
{[%clk 00:05:11]} {[%emt 00:00:11]} Kb4 {[%clk 00:03:15]} {[%emt 00:00:03]} 105.
Bc2 {[%clk 00:05:35]} {[%emt 00:00:05]} Ka3 {[%clk 00:03:40]} {[%emt 00:00:06]}
106. d5 {[%clk 00:05:59]} {[%emt 00:00:05]} Kb2 {[%clk 00:04:07]} {[%emt
00:00:03]} 107. Bd3 {[%clk 00:06:21]} {[%emt 00:00:08]} Kc1 {[%clk 00:04:36]}
{[%emt 00:00:02]} 108. d6 {[%clk 00:06:43]} {[%emt 00:00:08]} Kd2 {[%clk
00:05:03]} {[%emt 00:00:02]} 109. Be4 {[%clk 00:07:06]} {[%emt 00:00:07]} Ke3
{[%clk 00:05:30]} {[%emt 00:00:03]} 110. d7 {[%clk 00:07:31]} {[%emt 00:00:05]}
c2 {[%clk 00:05:56]} {[%emt 00:00:04]} 111. Bxc2 {[%clk 00:07:56]} {[%emt
00:00:05]} Kd2 {[%clk 00:06:24]} {[%emt 00:00:02]} 112. Be4 {[%clk 00:08:18]}
{[%emt 00:00:08]} Ke3 {[%clk 00:06:51]} {[%emt 00:00:03]} 113. d8=Q {[%clk
00:08:41]} {[%emt 00:00:07]} Ke2 {[%clk 00:07:17]} {[%emt 00:00:04]} 114. Qd3+
{[%clk 00:08:56]} {[%emt 00:00:15]} Ke1 {[%clk 00:07:45]} {[%emt 00:00:02]} 115.
Bf3 {[%clk 00:09:04]} {[%emt 00:00:22]} Kf2 {[%clk 00:08:13]} {[%emt 00:00:02]}
116. Qe2+ {[%clk 00:09:26]} {[%emt 00:00:08]} Kg3 {[%clk 00:08:40]} {[%emt
00:00:03]} 117. Qg2+ {[%clk 00:09:50]} {[%emt 00:00:06]} Kh4 {[%clk 00:09:08]}
{[%emt 00:00:03]} 118. Qg4+ {[%clk 00:10:15]} {[%emt 00:00:05]} 1-0

[Event "SS Manhem Chess Week 2019 GM and IM tournaments"]
[Site "Molnlycke kulturhus, Biblioteksgatan 2, Molnlycke, Sweden"]
[Date "2019.08.16"]
[Round "9.9"]
[White "Malmstig, Erik"]
[Black "Ornstein, Axel"]
[Result "1/2-1/2"]
[TimeControl "90 minutes for 40 moves + 30 minutes for the rest of the game + 30 seconds per move from move one."]
[WhiteTitle "FM"]
[BlackTitle "IM"]
[WhiteFideId "1702866"]
[BlackFideId "1700111"]
[WhiteElo "2335"]
[BlackElo "2311"]

1. d4 {[%clk 01:30:43]} {[%emt 00:00:16]} d5 {[%clk 01:30:51]} {[%emt
00:00:09]} 2. c4 {[%clk 01:31:06]} {[%emt 00:00:07]} e6 {[%clk 01:29:45]}
{[%emt 00:01:36]} 3. Nc3 {[%clk 01:31:16]} {[%emt 00:00:19]} Nf6 {[%clk
01:30:07]} {[%emt 00:00:08]} 4. cxd5 {[%clk 01:31:23]} {[%emt 00:00:23]} exd5
{[%clk 01:30:29]} {[%emt 00:00:08]} 5. Bg5 {[%clk 01:31:44]} {[%emt 00:00:08]}
c6 {[%clk 01:25:49]} {[%emt 00:05:11]} 6. Qc2 {[%clk 01:31:16]} {[%emt
00:00:57]} Nbd7 {[%clk 01:26:05]} {[%emt 00:00:14]} 7. e3 {[%clk 01:31:08]}
{[%emt 00:00:38]} h6 {[%clk 01:26:06]} {[%emt 00:00:29]} 8. Bh4 {[%clk
01:31:09]} {[%emt 00:00:29]} g5 {[%clk 01:26:30]} {[%emt 00:00:07]} 9. Bg3
{[%clk 01:31:29]} {[%emt 00:00:09]} Nh5 {[%clk 01:26:58]} {[%emt 00:00:03]} 10.
Nge2 {[%clk 01:28:32]} {[%emt 00:03:26]} Nxg3 {[%clk 01:25:26]} {[%emt
00:02:03]} 11. Nxg3 {[%clk 01:28:31]} {[%emt 00:00:30]} Nf6 {[%clk 01:25:50]}
{[%emt 00:00:06]} 12. Bd3 {[%clk 01:28:38]} {[%emt 00:00:24]} Be6 {[%clk
01:17:14]} {[%emt 00:09:06]} 13. O-O-O {[%clk 01:24:29]} {[%emt 00:04:39]} Qa5
{[%clk 01:15:26]} {[%emt 00:02:18]} 14. h4 {[%clk 01:22:59]} {[%emt 00:01:59]}
g4 {[%clk 01:14:20]} {[%emt 00:01:37]} 15. Bf5 {[%clk 01:22:32]} {[%emt
00:00:57]} O-O-O {[%clk 01:14:35]} {[%emt 00:00:15]} 16. Bxe6+ {[%clk
01:22:45]} {[%emt 00:00:18]} fxe6 {[%clk 01:15:03]} {[%emt 00:00:01]} 17. Qg6
{[%clk 01:23:04]} {[%emt 00:00:10]} Be7 {[%clk 01:15:25]} {[%emt 00:00:07]} 18.
Qf7 {[%clk 01:23:01]} {[%emt 00:00:34]} Kd7 {[%clk 01:15:50]} {[%emt 00:00:05]}
19. Nh5 {[%clk 01:22:56]} {[%emt 00:00:35]} Nxh5 {[%clk 01:15:17]} {[%emt
00:01:03]} 20. Qxh5 {[%clk 01:23:21]} {[%emt 00:00:06]} Rdg8 {[%clk 01:15:36]}
{[%emt 00:00:10]} 21. Kb1 {[%clk 01:11:33]} {[%emt 00:12:18]} Qd8 {[%clk
01:15:54]} {[%emt 00:00:11]} 22. Ne2 {[%clk 01:09:34]} {[%emt 00:02:31]} Qe8
{[%clk 01:11:57]} {[%emt 00:04:25]} 1/2-1/2